bitfinex-derivatives/quotes_SOLF0:USTF0_20250309
["timestamp","ask_amount","ask_price","bid_price","bid_amount"]
[1741494640917,37.68012946,137.85,137.82,0.04869968]
[1741494642023,7.2564,137.84,137.82,0.04869968]
[1741494646224,7.2566,137.83,137.82,0.04869968]
[1741494646526,37.68012946,137.85,137.82,0.04869968]
[1741494647019,7.2564,137.84,137.82,0.04869968]
[1741494647219,11.90734859,137.83,137.82,0.04869968]
[1741494648524,19.16394859,137.83,137.82,0.04869968]
[1741494650729,7.2582,137.8,137.75,9.95684823]
[1741494650917,44.86554859,137.8,137.75,9.95684823]
[1741494651820,44.86554859,137.8,137.76,7.31262714]
[1741494652022,0.05393764,137.79,137.76,7.31262714]
[1741494652421,7.31263764,137.79,137.76,7.31262714]
[1741494653224,7.31263764,137.79,137.76,0.05242714]
[1741494655931,0.05393764,137.79,137.76,0.05242714]
[1741494656131,7.2593,137.78,137.76,0.05242714]
[1741494656335,25.72,137.77,137.76,0.05242714]
[1741494656521,25.72,137.77,137.72,39.71971823]
[1741494656723,11.90734859,137.74,137.72,39.71971823]
[1741494656927,37.62734859,137.74,137.72,39.71971823]
[1741494657124,25.72,137.74,137.72,39.71971823]
[1741494657530,37.62734859,137.74,137.72,39.71971823]
[1741494657731,37.67734205,137.74,137.72,39.71971823]
[1741494658632,44.93884205,137.74,137.72,39.71971823]
[1741494658932,37.67734205,137.74,137.72,39.71971823]
[1741494660730,37.67734205,137.74,137.68,15.84794859]
[1741494660936,44.93874205,137.74,137.68,15.84794859]
[1741494661132,37.67734205,137.74,137.68,15.84794859]
[1741494662740,0.04999346,137.74,137.7,11.90734859]
[1741494663238,0.04999346,137.74,137.73,7.2618]
[1741494675048,0.04999346,137.74,137.7,11.90734859]
[1741494675249,0.04999346,137.74,137.71,7.2628]
[1741494675446,11.95734205,137.74,137.71,7.2628]
[1741494676455,19.21874205,137.74,137.71,7.2628]
[1741494676952,11.95734205,137.74,137.68,21.86419682]
[1741494677255,11.90734859,137.72,137.68,9.95684823]
[1741494677455,37.62734859,137.72,137.68,9.95684823]
[1741494677956,37.62734859,137.72,137.69,7.2636]
[1741494678357,25.77121365,137.72,137.69,7.2636]
[1741494678546,25.77121365,137.72,137.71,7.2629]
[1741494678953,37.67856224,137.72,137.68,11.90734859]
[1741494679157,37.67856224,137.72,137.7,7.2632]
[1741494679349,37.67856224,137.72,137.68,11.90734859]
[1741494679550,37.67856224,137.72,137.71,7.2629]
[1741494680048,37.67856224,137.72,137.69,7.2638]
[1741494680254,37.67856224,137.72,137.66,251.38734859]
[1741494680754,44.94126224,137.72,137.67,7.2648]
[1741494681160,11.90734859,137.7,137.66,239.48]
[1741494681351,25.72,137.69,137.66,7.2654]
[1741494681751,25.76595161,137.69,137.66,7.2654]
[1741494682052,25.76595161,137.69,137.64,55.59446682]
[1741494682355,25.76595161,137.69,137.65,7.266]
[1741494683259,25.76595161,137.69,137.66,7.2655]
[1741494684560,25.76595161,137.69,137.64,11.90734859]
[1741494684751,25.76595161,137.69,137.67,7.2649]
[1741494685862,25.76595161,137.69,137.68,7.2645]
[1741494687962,0.04595161,137.69,137.68,7.2645]
[1741494695062,11.90734859,137.74,137.73,7.2618]
[1741494695767,13.90894859,137.76,137.74,7.2611]
[1741494696364,13.95766478,137.76,137.74,7.31224185]
[1741494697567,11.95606478,137.76,137.75,7.2608]
[1741494697970,11.95606478,137.76,137.74,7.31234185]
[1741494699068,11.95606478,137.76,137.74,0.05114185]
[1741494699765,19.21656478,137.76,137.74,0.05114185]
[1741494702667,11.95606478,137.76,137.74,0.05114185]
[1741494703273,11.95606478,137.76,137.74,7.31244185]
[1741494703877,11.95606478,137.76,137.74,0.05114185]
[1741494704079,11.95606478,137.76,137.75,7.2608]
[1741494705685,0.04871619,137.76,137.75,7.2608]
[1741494711891,11.90734859,137.8,137.78,7.2587]
[1741494712590,11.90734859,137.8,137.74,25.72]
[1741494712789,43.46024859,137.82,137.75,11.90734859]
[1741494713093,0.0506471,137.78,137.77,11.90734859]
[1741494713295,11.90734859,137.83,137.82,7.2571]
[1741494713682,11.90734859,137.83,137.77,37.62734859]
[1741494714381,0.0509944,137.81,137.79,0.05196659]
[1741494714593,0.0509944,137.81,137.79,11.95931518]
[1741494714793,0.0509944,137.81,137.8,7.2582]
[1741494718393,11.90734859,137.85,137.79,11.95931518]
[1741494718597,11.90734859,137.85,137.83,7.2562]
[1741494718895,11.90734859,137.85,137.79,11.90734859]
[1741494719198,11.90734859,137.85,137.82,7.257]
[1741494719401,11.90734859,137.85,137.79,11.90734859]
[1741494719600,11.95499461,137.85,137.82,0.04740159]
[1741494720699,11.95499461,137.85,137.82,7.30420159]
[1741494722399,11.95499461,137.85,137.83,7.2565]
[1741494723305,25.7,137.84,137.82,0.04740159]
[1741494723498,11.90734859,137.83,137.82,0.04740159]
[1741494724503,19.16394859,137.83,137.82,0.04740159]
[1741494725710,11.90734859,137.83,137.82,0.04740159]
[1741494726408,11.90734859,137.83,137.82,7.30450159]
[1741494726806,11.90734859,137.83,137.82,0.04740159]
[1741494727610,11.90734859,137.83,137.82,7.30450159]
[1741494728108,11.90734859,137.83,137.82,0.04740159]
[1741494730612,11.90734859,137.83,137.82,7.30450159]
[1741494731512,11.90734859,137.83,137.82,0.04740159]
[1741494733412,11.90734859,137.83,137.82,7.30450159]
[1741494735318,11.95499461,137.85,137.84,7.256]
[1741494735616,0.04764602,137.85,137.84,7.256]
[1741494737119,0.04764602,137.85,137.83,7.2563]
[1741494737516,0.04764602,137.85,137.82,0.04740159]
[1741494738417,0.04764602,137.85,137.84,7.256]
[1741494744211,11.95499461,137.85,137.82,0.04740159]
[1741494744814,11.90734859,137.83,137.82,0.04740159]
[1741494745015,37.60734859,137.83,137.82,0.04740159]
[1741494745419,37.60734859,137.83,137.76,9.95684823]
[1741494745616,11.90734859,137.81,137.77,7.2597]
[1741494746012,11.90734859,137.81,137.76,9.95684823]
[1741494746520,0.05203248,137.8,137.77,11.96217312]
[1741494746916,0.05203248,137.8,137.78,7.2589]
[1741494747918,0.05203248,137.8,137.79,7.2587]
[1741494748429,0.05203248,137.8,137.77,37.66217312]
[1741494748720,0.05203248,137.8,137.77,0.05482453]
[1741494749116,0.05203248,137.8,137.77,11.96217312]
[1741494749915,0.05203248,137.8,137.78,7.2588]
[1741494751723,0.05203248,137.8,137.77,19.22187312]
[1741494752422,0.05203248,137.8,137.77,11.96217312]
[1741494752617,0.05203248,137.8,137.79,7.2587]
[1741494753416,0.05203248,137.8,137.79,19.16604859]
[1741494754022,37.60734859,137.87,137.83,7.2563]
[1741494755016,37.60734859,137.87,137.84,0.05297771]
[1741494755222,0.04821586,137.86,137.84,0.05297771]
[1741494756018,0.04821586,137.86,137.84,7.30897771]
[1741494756421,0.04821586,137.86,137.84,11.9603263]
[1741494756920,0.04821586,137.86,137.84,0.05297771]
[1741494757416,7.30331586,137.86,137.84,0.05297771]
[1741494759227,0.04821586,137.86,137.84,0.05297771]
[1741494759717,0.04821586,137.86,137.84,7.30887771]
[1741494760820,0.04821586,137.86,137.85,7.2555]
[1741494761127,0.04821586,137.86,137.84,0.05297771]
[1741494761831,7.30321586,137.86,137.84,0.05297771]
[1741494762731,0.04821586,137.86,137.84,0.05297771]
[1741494764625,7.30321586,137.86,137.84,0.05297771]
[1741494768841,19.16284859,137.85,137.84,0.05297771]
[1741494769136,11.90734859,137.85,137.78,11.90734859]
[1741494769337,7.2575,137.82,137.78,19.16614859]
[1741494769539,7.2575,137.82,137.78,11.90734859]
[1741494769740,11.90734859,137.83,137.78,11.90734859]
[1741494769940,7.2572,137.82,137.79,7.2584]
[1741494770243,7.30847371,137.82,137.79,0.04828943]
[1741494770939,7.2577,137.81,137.79,0.04828943]
[1741494771542,7.2582,137.8,137.79,0.04828943]
[1741494772729,19.16514859,137.81,137.79,0.04828943]
[1741494773838,32.9582,137.8,137.79,0.04828943]
[1741494774038,25.7,137.8,137.74,11.90734859]
[1741494774230,11.90734859,137.79,137.72,11.90734859]
[1741494775142,0.05073513,137.77,137.74,0.05152336]
[1741494775642,0.05073513,137.77,137.74,11.95887195]
[1741494777040,0.05073513,137.77,137.76,7.2603]
[1741494777245,0.05073513,137.77,137.76,19.16764859]
[1741494780346,46.80054859,137.83,137.8,7.2579]
[1741494780749,7.2571,137.82,137.78,11.90734859]
[1741494781050,7.2571,137.82,137.79,7.2583]
[1741494781349,46.80044859,137.83,137.79,7.2583]
[1741494781542,0.05246303,137.82,137.79,7.31011853]
[1741494781738,0.05246303,137.82,137.81,7.2576]
[1741494784245,0.05246303,137.82,137.8,11.90734859]
[1741494784442,0.05246303,137.82,137.8,19.16524859]
[1741494785544,0.05246303,137.82,137.8,11.90734859]
[1741494785843,0.05246303,137.82,137.81,7.2576]
[1741494787049,0.05246303,137.82,137.8,11.90734859]
[1741494787847,0.05246303,137.82,137.8,19.16514859]
[1741494792363,0.05246303,137.82,137.8,11.90734859]
[1741494792561,0.05246303,137.82,137.81,7.2576]
[1741494797264,5.9321,137.88,137.8,37.60734859]
[1741494797461,5.9321,137.88,137.85,7.2554]
[1741494798567,5.98577639,137.88,137.85,7.30126382]
[1741494801068,0.05367639,137.88,137.85,7.30126382]
[1741494802067,0.05367639,137.88,137.85,0.04586382]
[1741494802068,7.2549,137.87,137.85,0.04586382]
[1741494802271,11.90734859,137.87,137.85,0.04586382]
[1741494802565,19.16204859,137.87,137.85,0.04586382]
[1741494802769,11.90734859,137.87,137.85,0.04586382]
[1741494803371,7.255,137.86,137.85,0.04586382]
[1741494805874,32.955,137.86,137.85,0.04586382]
[1741494808773,25.7,137.86,137.85,0.04586382]
[1741494810371,25.7,137.86,137.85,7.30136382]
[1741494810571,0.05367639,137.88,137.85,7.30136382]
[1741494812971,0.05367639,137.88,137.85,0.04586382]
[1741494813277,0.05367639,137.88,137.86,7.2545]
[1741494813474,0.05367639,137.88,137.85,0.04586382]
[1741494813873,0.05367639,137.88,137.85,7.30116382]
[1741494814777,7.30787639,137.88,137.85,0.04586382]
[1741494815166,7.2545,137.87,137.85,0.04586382]
[1741494815568,0.05367639,137.88,137.85,0.04586382]
[1741494815779,7.30777639,137.88,137.85,0.04586382]
[1741494816071,0.05367639,137.88,137.85,0.04586382]
[1741494817374,7.2545,137.87,137.85,0.04586382]
[1741494817577,0.05367639,137.88,137.85,0.04586382]
[1741494818676,7.2545,137.87,137.85,0.04586382]
[1741494818970,0.05367639,137.88,137.85,0.04586382]
[1741494819167,11.90734859,137.87,137.85,0.04586382]
[1741494819369,32.935,137.86,137.85,0.04586382]
[1741494820477,25.68,137.86,137.85,0.04586382]
[1741494821475,25.68,137.86,137.85,7.30136382]
[1741494822677,0.05367639,137.88,137.85,7.30136382]
[1741494824283,7.30767639,137.88,137.85,0.04586382]
[1741494825679,0.05367639,137.88,137.85,7.30116382]
[1741494826186,0.05367639,137.88,137.85,0.04586382]
[1741494826385,7.30777639,137.88,137.85,0.04586382]
[1741494826586,0.05367639,137.88,137.85,0.04586382]
[1741494827186,7.2545,137.87,137.85,0.04586382]
[1741494827693,7.30787639,137.88,137.85,0.04586382]
[1741494827980,11.96102498,137.88,137.85,0.04586382]
[1741494828485,7.255,137.87,137.85,0.04586382]
[1741494828781,11.96102498,137.88,137.85,0.04586382]
[1741494828986,7.255,137.86,137.85,0.04586382]
[1741494831088,7.2547,137.87,137.85,0.04586382]
[1741494832987,11.96102498,137.88,137.85,0.04586382]
[1741494833188,7.255,137.86,137.85,0.04586382]
[1741494837394,32.935,137.86,137.85,0.04586382]
[1741494837992,44.84234859,137.86,137.85,0.04586382]
[1741494842794,37.58734859,137.86,137.85,0.04586382]
[1741494843697,25.68,137.86,137.85,0.04586382]
[1741494844005,25.73367639,137.88,137.85,0.04586382]
[1741494844298,25.73367639,137.88,137.85,11.95321241]
[1741494844896,25.73367639,137.88,137.86,7.2547]
[1741494847893,0.05367639,137.88,137.85,11.95321241]
[1741494848098,0.05367639,137.88,137.87,7.2545]
[1741494848999,25.68,137.94,137.87,11.90734859]
[1741494849199,25.68,137.94,137.91,7.2522]
[1741494850002,25.68,137.94,137.92,7.2518]
[1741494850206,25.73360507,137.94,137.92,7.2518]
[1741494850510,25.73360507,137.94,137.93,7.2513]
[1741494850698,0.05360507,137.94,137.91,11.95537624]
[1741494852303,0.05360507,137.94,137.91,19.20757624]
[1741494852504,0.05360507,137.94,137.91,11.95537624]
[1741494855109,0.05360507,137.94,137.91,19.20767624]
[1741494855408,0.05360507,137.94,137.91,11.95537624]
[1741494856510,0.05360507,137.94,137.91,19.20737624]
[1741494858106,7.30450507,137.94,137.91,11.95537624]
[1741494858412,0.05360507,137.94,137.91,11.95537624]
[1741494859113,0.05360507,137.94,137.91,19.20737624]
[1741494860403,7.30450507,137.94,137.91,19.20737624]
[1741494862212,7.2518,137.92,137.91,0.04802765]
[1741494862613,25.73360507,137.94,137.91,0.04802765]
[1741494863519,7.2515,137.93,137.91,0.04802765]
[1741494864717,0.05360507,137.94,137.91,11.95537624]
[1741494864915,0.05360507,137.94,137.93,11.90734859]
[1741494865612,0.05360507,137.94,137.93,19.15864859]
[1741494865815,25.68,137.98,137.93,11.90734859]
[1741494866017,7.2488,137.98,137.95,19.15734859]
[1741494866419,25.66,137.99,137.95,19.15734859]
[1741494866922,0.05170789,137.98,137.96,0.0526336]
[1741494867622,0.05170789,137.98,137.97,7.2492]
[1741494868017,0.05170789,137.98,137.96,7.3022336]
[1741494868222,0.05170789,137.98,137.96,0.0526336]
[1741494871727,7.30040789,137.98,137.96,0.0526336]
[1741494875624,0.05170789,137.98,137.96,0.0526336]
[1741494876334,0.05170789,137.98,137.96,7.3023336]
[1741494876924,0.05170789,137.98,137.97,7.2492]
[1741494877527,7.2473,138.01,137.98,7.2486]
[1741494877735,7.2473,138.01,137.97,11.90734859]
[1741494878032,37.56734859,138.03,137.97,11.90734859]
[1741494878432,37.56734859,138.03,137.97,19.15634859]
[1741494878831,0.05507827,138.01,137.97,19.15634859]
[1741494879225,7.30247827,138.01,137.97,19.15634859]
[1741494879431,0.05507827,138.01,137.98,7.2483]
[1741494880129,0.05507827,138.01,137.97,19.15634859]
[1741494880438,0.05507827,138.01,137.97,11.90734859]
[1741494880735,0.05507827,138.01,137.98,7.2484]
[1741494884940,7.30227827,138.01,137.97,19.15634859]
[1741494885337,0.05507827,138.01,137.97,11.90734859]
[1741494885631,0.05507827,138.01,137.99,7.2481]
[1741494885834,0.05507827,138.01,137.99,19.15544859]
[1741494887039,0.05507827,138.01,138.0,7.2476]
[1741494888036,11.90734859,138.07,137.99,37.61535446]
[1741494888237,11.90734859,138.07,138.03,7.2456]
[1741494888639,1.989,138.1,138.04,11.90734859]
[1741494888942,27.5844,138.11,138.06,11.90734859]
[1741494889342,0.05073257,138.1,138.07,0.05206645]
[1741494889740,0.05073257,138.1,138.07,7.29586645]
[1741494890241,0.05073257,138.1,138.07,0.05206645]
[1741494893446,7.243,138.09,138.07,0.05206645]
[1741494895949,0.05073257,138.1,138.07,0.05206645]
[1741494896142,7.2434,138.08,138.07,0.05206645]
[1741494904452,0.05073257,138.1,138.07,0.05206645]
[1741494904453,7.2431,138.09,138.07,0.05206645]
[1741494904750,0.05073257,138.1,138.07,0.05206645]
[1741494905152,7.2429,138.09,138.07,0.05206645]
[1741494905549,0.05073257,138.1,138.07,0.05206645]
[1741494905754,7.2434,138.08,138.07,0.05206645]
[1741494908556,7.2431,138.09,138.07,0.05206645]
[1741494910061,7.2434,138.08,138.07,0.05206645]
[1741494911156,7.2453,138.05,138.01,246.4069]
[1741494911345,7.2453,138.05,138.02,11.90734859]
[1741494911952,7.2454,138.05,138.02,11.90734859]
[1741494912457,7.29936275,138.05,138.02,11.95610706]
[1741494913653,0.05396275,138.05,138.02,11.95610706]
[1741494913853,25.69396275,138.05,138.02,0.04875847]
[1741494914358,7.2461,138.03,138.02,0.04875847]
[1741494917358,7.2456,138.04,138.02,0.04875847]
[1741494917562,25.69396275,138.05,138.02,11.95610706]
[1741494919467,7.2456,138.04,138.02,11.95610706]
[1741494919661,0.05396275,138.05,138.02,11.95610706]
[1741494920560,7.29916275,138.05,138.02,11.95610706]
[1741494922561,0.05396275,138.05,138.02,11.95610706]
[1741494922757,7.2457,138.04,138.02,11.95610706]
[1741494923258,0.05396275,138.05,138.02,11.95610706]
[1741494923459,7.29916275,138.05,138.02,11.95610706]
[1741494923967,0.05396275,138.05,138.02,11.95610706]
[1741494924267,7.2456,138.04,138.02,11.95610706]
[1741494925065,0.05396275,138.05,138.02,11.95610706]
[1741494925262,7.29916275,138.05,138.02,11.95610706]
[1741494927269,7.29916275,138.05,138.02,19.20260706]
[1741494928959,0.05396275,138.05,138.04,19.15284859]
[1741494929565,0.05396275,138.05,138.04,11.90734859]
[1741494937665,13.79024859,138.11,138.04,11.90734859]
[1741494937875,25.64,138.1,138.06,11.90734859]
[1741494938073,7.2434,138.08,138.06,11.90734859]
[1741494938874,7.29628724,138.08,138.06,11.95612002]
[1741494939773,7.244,138.07,138.06,0.04877143]
[1741494943883,32.93658724,138.08,138.06,0.04877143]
[1741494945377,25.69288724,138.08,138.06,0.04877143]
[1741494945679,7.244,138.07,138.06,0.04877143]
[1741494953388,25.69288724,138.08,138.06,0.04877143]
[1741494955093,7.244,138.07,138.06,0.04877143]
[1741494956188,25.69288724,138.08,138.06,0.04877143]
[1741494956395,32.93648724,138.08,138.06,0.04877143]
[1741494957589,25.69288724,138.08,138.06,7.29277143]
[1741494958095,25.69288724,138.08,138.06,0.04877143]
[1741494958298,32.93658724,138.08,138.06,0.04877143]
[1741494961592,7.29658724,138.08,138.06,0.04877143]
[1741494961991,0.05288724,138.08,138.06,7.29317143]
[1741494965298,0.05288724,138.08,138.06,0.04877143]
[1741494965993,0.05288724,138.08,138.06,7.29327143]
[1741494967701,0.05288724,138.08,138.06,0.04877143]
[1741494968395,0.05288724,138.08,138.06,7.29297143]
[1741494968595,0.05288724,138.08,138.06,19.20032002]
[1741494970701,0.05288724,138.08,138.06,11.95612002]
[1741494972402,25.67288724,138.08,138.06,0.04877143]
[1741494972798,7.244,138.07,138.06,0.04877143]
[1741494975403,11.90734859,138.07,138.02,11.90734859]
[1741494975609,7.2457,138.04,138.02,11.90734859]
[1741494976102,11.90734859,138.07,138.02,11.90734859]
[1741494976708,0.05326584,138.06,138.03,0.0525027]
[1741494977409,7.2455,138.05,138.03,0.0525027]
[1741494978414,7.2455,138.04,138.03,0.0525027]
[1741494978915,0.05326584,138.06,138.03,0.0525027]
[1741494979115,7.2452,138.05,138.03,0.0525027]
[1741494979614,7.29786584,138.06,138.03,7.2984027]
[1741494980517,0.05326584,138.06,138.03,7.2984027]
[1741494982714,0.05326584,138.06,138.03,0.0525027]
[1741494984119,25.62,138.05,138.03,0.0525027]
[1741494984710,7.2455,138.04,138.03,0.0525027]
[1741494984918,39.43974859,138.05,137.98,11.90734859]
[1741494985114,11.90734859,138.03,137.98,11.90734859]
[1741494985315,32.8671,138.02,137.98,19.15594859]
[1741494985514,32.8671,138.02,137.98,11.90734859]
[1741494985711,25.62,138.02,137.98,11.90734859]
[1741494985919,7.2478,138.0,137.98,11.90734859]
[1741494986120,7.2478,138.0,137.99,0.05352002]
[1741494991726,7.29992896,138.01,137.99,0.05352002]
[1741494992618,0.05242896,138.01,137.99,0.05352002]
[1741494994527,7.2476,138.0,137.99,0.05352002]
[1741495001029,0.05242896,138.01,137.99,0.05352002]
[1741495001234,29.6807,138.08,138.0,11.90734859]
[1741495001427,3.9607,138.08,138.04,11.90734859]
[1741495001622,3.9607,138.08,138.04,19.15254859]
[1741495002023,3.9607,138.08,138.04,11.90734859]
[1741495002430,0.04783908,138.07,138.05,0.0523044]
[1741495005230,0.04783908,138.07,138.06,19.15184859]
[1741495010436,0.04783908,138.07,138.06,11.90734859]
[1741495010642,0.04783908,138.07,138.05,0.0523044]
[1741495011231,7.29213908,138.07,138.05,0.0523044]
[1741495011539,0.04783908,138.07,138.05,0.0523044]
[1741495012036,0.04783908,138.07,138.06,11.90734859]
[1741495012341,0.04783908,138.07,138.05,0.0523044]
[1741495012940,7.29183908,138.07,138.05,0.0523044]
[1741495013333,0.04783908,138.07,138.05,0.0523044]
[1741495014138,7.29183908,138.07,138.05,0.0523044]
[1741495015942,0.04783908,138.07,138.05,0.0523044]
[1741495016437,7.29213908,138.07,138.05,0.0523044]
[1741495016836,0.04783908,138.07,138.05,0.0523044]
[1741495017643,0.04783908,138.07,138.05,7.2972044]
[1741495019043,0.04783908,138.07,138.05,0.0523044]
[1741495019244,7.29193908,138.07,138.05,0.0523044]
[1741495019446,0.04783908,138.07,138.05,0.0523044]
[1741495020546,7.29223908,138.07,138.05,0.0523044]
[1741495021138,0.04783908,138.07,138.05,0.0523044]
[1741495021342,7.2445,138.06,138.05,0.0523044]
[1741495022545,0.04783908,138.07,138.05,0.0523044]
[1741495024549,0.04783908,138.07,138.05,7.2973044]
[1741495026849,0.04783908,138.07,138.05,0.0523044]
[1741495028251,0.04783908,138.07,138.06,19.15184859]
[1741495029254,0.04783908,138.07,138.06,11.90734859]
[1741495030457,0.04783908,138.07,138.06,19.15184859]
[1741495034958,0.04783908,138.07,138.06,11.90734859]
[1741495037858,0.04783908,138.07,138.06,19.15184859]
[1741495041770,0.04783908,138.07,138.06,11.90734859]
[1741495042968,0.04783908,138.07,138.05,0.0523044]
[1741495045369,0.04783908,138.07,138.05,7.2972044]
[1741495045872,7.29223908,138.07,138.05,0.0523044]
[1741495050472,7.2445,138.06,138.05,0.0523044]
[1741495052968,0.04783908,138.07,138.05,0.0523044]
[1741495053168,7.29193908,138.07,138.05,0.0523044]
[1741495054172,7.2445,138.06,138.05,0.0523044]
[1741495061081,0.04783908,138.07,138.05,0.0523044]
[1741495062385,0.04783908,138.07,138.06,11.90734859]
[1741495063282,0.04783908,138.07,138.05,0.0523044]
[1741495064482,7.29213908,138.07,138.05,0.0523044]
[1741495066481,7.2445,138.06,138.05,0.0523044]
[1741495069687,0.04783908,138.07,138.05,0.0523044]
[1741495069884,7.29193908,138.07,138.05,0.0523044]
[1741495073591,7.2445,138.06,138.05,0.0523044]
[1741495074093,79.82449921,138.19,138.05,0.0523044]
[1741495074389,79.82449921,138.19,138.1,11.90734859]
[1741495074390,15.7783858,138.16,138.1,11.90734859]
[1741495074585,1.8879,138.17,138.1,11.90734859]
[1741495074790,7.2393,138.16,138.1,11.90734859]
[1741495075385,0.05436531,138.14,138.12,0.0556203]
[1741495079290,0.05436531,138.14,138.12,7.2968203]
[1741495079691,0.05436531,138.14,138.12,11.96296889]
[1741495079990,0.05436531,138.14,138.13,7.2408]
[1741495084294,11.90734859,138.21,138.12,11.96296889]
[1741495084496,37.80734859,138.21,138.16,7.2392]
[1741495084695,7.2372,138.2,138.16,7.2392]
[1741495085089,19.14544859,138.19,138.13,11.90734859]
[1741495085289,13.78474859,138.19,138.13,11.90734859]
[1741495085495,0.05058666,138.17,138.15,0.05006191]
[1741495087795,7.28938666,138.17,138.15,0.05006191]
[1741495088598,7.2392,138.16,138.15,0.05006191]
[1741495089196,7.2403,138.14,138.11,11.90734859]
[1741495089387,37.74734859,138.15,138.11,11.90734859]
[1741495089588,37.74734859,138.15,138.09,11.90734859]
[1741495089791,1.9141,138.14,138.09,11.90734859]
[1741495089997,7.242,138.11,138.09,11.90734859]
[1741495090494,7.2424,138.1,138.09,0.05124735]
[1741495092199,11.9594894,138.11,138.05,11.90734859]
[1741495092397,14.0072894,138.11,138.05,11.90734859]
[1741495092701,11.90734859,138.09,138.03,11.90734859]
[1741495093000,25.84,138.08,138.03,11.90734859]
[1741495093396,25.84,138.08,138.05,11.90734859]
[1741495093397,0.04577653,138.07,138.05,11.90734859]
[1741495094899,0.04577653,138.07,138.05,19.15184859]
[1741495098706,0.04577653,138.07,138.06,7.2445]
[1741495099308,26.0,138.14,138.06,29.62]
[1741495099511,33.2404,138.14,138.1,19.14934859]
[1741495100308,26.0,138.14,138.1,19.14934859]
[1741495100509,7.2927946,138.13,138.11,0.04928808]
[1741495102313,0.0518946,138.13,138.11,0.04928808]
[1741495103107,7.2931946,138.13,138.11,0.04928808]
[1741495104308,0.0518946,138.13,138.11,0.04928808]
[1741495107316,7.2413,138.12,138.11,0.04928808]
[1741495110617,7.243,138.09,138.06,11.90734859]
[1741495111820,7.29117906,138.09,138.06,11.95312152]
[1741495113016,0.04817906,138.09,138.08,11.90734859]
[1741495114320,0.04817906,138.09,138.08,19.15074859]
[1741495115321,26.04,138.12,138.1,7.2424]
[1741495115516,26.04,138.12,138.1,19.14974859]
[1741495116215,7.2405,138.14,138.1,19.14974859]
[1741495116420,37.92734859,138.19,138.12,11.90734859]
[1741495116619,0.0539107,138.13,138.12,11.90734859]
[1741495116820,7.239,138.17,138.14,0.04688847]
[1741495117017,7.239,138.17,138.13,7.2404]
[1741495117322,7.28849607,138.17,138.14,0.04768165]
[1741495119418,7.2393,138.16,138.14,0.04768165]
[1741495119622,0.04949607,138.17,138.14,0.04768165]
[1741495120522,7.28849607,138.17,138.14,0.04768165]
[1741495121022,7.2396,138.16,138.14,0.04768165]
[1741495123126,7.2398,138.15,138.14,0.04768165]
[1741495133221,19.14714859,138.15,138.14,0.04768165]
[1741495137633,7.2398,138.15,138.14,0.04768165]
[1741495139432,33.1795,138.16,138.14,0.04768165]
[1741495140230,11.95684466,138.17,138.14,0.04768165]
[1741495140430,7.28829607,138.17,138.14,0.04768165]
[1741495140836,7.2393,138.16,138.14,0.04768165]
[1741495141238,37.80734859,138.15,138.14,0.04768165]
[1741495141635,45.04714859,138.15,138.14,0.04768165]
[1741495155245,33.1398,138.15,138.14,0.04768165]
[1741495161241,25.9,138.15,138.14,0.04768165]
[1741495162342,33.1398,138.15,138.14,0.04768165]
[1741495162746,7.2398,138.15,138.14,0.04768165]
[1741495162946,33.0798,138.15,138.14,0.04768165]
[1741495165048,7.2398,138.15,138.14,0.04768165]
[1741495165249,33.0594,138.16,138.14,0.04768165]
[1741495165441,44.52766603,138.22,138.15,11.90734859]
[1741495165442,15.7589957,138.22,138.15,11.90734859]
[1741495165647,25.82,138.21,138.17,19.14564859]
[1741495165950,25.82,138.21,138.17,11.90734859]
[1741495166449,25.82,138.21,138.18,7.2378]
[1741495166649,0.05402145,138.2,138.18,7.28804354]
[1741495169751,25.8,138.22,138.19,7.2376]
[1741495170947,25.85410369,138.22,138.19,7.2376]
[1741495173347,33.09020369,138.22,138.18,7.28824354]
[1741495173660,25.85410369,138.22,138.18,0.05024354]
[1741495174155,25.85410369,138.22,138.19,7.2376]
[1741495175046,33.09030369,138.22,138.19,7.2376]
[1741495180955,33.09030369,138.22,138.18,0.05024354]
[1741495181157,33.09030369,138.22,138.18,7.28824354]
[1741495181955,25.85410369,138.22,138.18,0.05024354]
[1741495182158,7.2367,138.21,138.18,0.05024354]
[1741495183756,25.85410369,138.22,138.19,7.2376]
[1741495184757,0.05410369,138.22,138.21,19.14394859]
[1741495189454,25.68,138.27,138.24,7.2349]
[1741495189659,32.9131,138.28,138.24,7.2349]
[1741495189861,32.9131,138.28,138.23,11.90734859]
[1741495189862,25.68,138.28,138.23,11.90734859]
[1741495190366,7.2337,138.27,138.23,19.14284859]
[1741495190867,0.04778098,138.26,138.24,0.05444131]
[1741495192470,0.04778098,138.26,138.24,7.28904131]